bitfinex-derivatives/quotes_ETHF0:USTF0_20241023
["timestamp","ask_amount","ask_price","bid_price","bid_amount"]
[1729695816285,3.2078,2562.2,2562.1,0.39055]
[1729695816667,0.5293,2562.4,2562.3,0.39052]
[1729695816868,0.39057,2562.1,2562.0,0.39056]
[1729695817071,0.39054,2562.2,2562.1,0.39054]
[1729695817378,0.39053,2562.3,2562.2,0.39053]
[1729695817771,4.54845307,2562.3,2562.2,0.39053]
[1729695818280,0.39054,2562.2,2562.1,0.39054]
[1729695819269,8.08735,2562.2,2560.9,3.2078]
[1729695819470,4.02663,2561.5,2560.6,0.97695]
[1729695819781,2.07183823,2562.1,2560.5,3.05]
[1729695819782,3.05,2561.2,2560.5,3.05]
[1729695819976,0.39076,2560.8,2560.7,0.39076]
[1729695820287,0.39074,2560.9,2560.7,0.39076]
[1729695820476,3.2078,2561.0,2560.4,3.05]
[1729695820976,3.05,2560.8,2560.7,0.39077]
[1729695821171,3.05,2560.8,2560.5,40.8]
[1729695821372,3.44076,2560.8,2560.6,0.39077]
[1729695821579,3.59852,2561.0,2560.8,0.39074]
[1729695821777,3.59852,2561.0,2560.9,0.39074]
[1729695822079,3.2078,2561.0,2560.9,0.39074]
[1729695822280,0.39075,2560.9,2560.7,0.39076]
[1729695822482,6.2578,2561.0,2560.6,0.5704]
[1729695822670,0.39076,2560.8,2560.6,0.5704]
[1729695822874,0.39078,2560.7,2560.5,41.19079]
[1729695823078,0.39077,2560.7,2560.6,0.39078]
[1729695823272,3.05,2560.8,2560.5,40.8]
[1729695823475,0.39077,2560.7,2560.5,41.19079]
[1729695823777,3.44078,2560.6,2560.5,40.8]
[1729695823982,3.05,2560.6,2560.2,0.556]
[1729695824280,0.39083,2560.3,2560.2,0.94684]
[1729695824683,3.05,2560.4,2560.1,3.2078]
[1729695824882,0.39083,2560.3,2560.2,40.8]
[1729695825082,0.39083,2560.3,2560.2,41.19084]
[1729695825388,0.39083,2560.3,2560.2,40.8]
[1729695825576,0.39083,2560.3,2560.0,0.2]
[1729695825577,8.20780533,2560.3,2560.0,0.2]
[1729695825785,3.44086,2560.1,2560.0,0.2]
[1729695825980,3.05,2560.1,2560.0,0.59087]
[1729695826175,4.53369846,2560.1,2560.0,0.59087]
[1729695826484,0.94524,2560.2,2560.1,0.39086]
[1729695826981,0.5544,2560.2,2560.1,0.39086]
[1729695827286,0.94525,2560.2,2560.1,0.39086]
[1729695827684,0.5544,2560.2,2560.1,0.39086]
[1729695827880,0.94525,2560.2,2560.1,0.39086]
[1729695828280,0.5544,2560.2,2560.1,0.39086]
[1729695828481,0.94524,2560.2,2560.1,0.39086]
[1729695828689,0.5544,2560.2,2560.1,0.39086]
[1729695829183,0.94524,2560.2,2560.1,0.39086]
[1729695829384,0.35851446,2560.2,2560.1,0.39086]
[1729695829585,3.05,2560.3,2560.2,0.39084]
[1729695829782,3.2078,2560.7,2560.3,0.39083]
[1729695829987,3.05,2560.8,2560.4,0.5602]
[1729695830190,3.05,2560.8,2560.7,0.39076]
[1729695830383,3.2078,2561.0,2560.5,0.3908]
[1729695830384,3.05,2560.6,2560.5,0.3908]
[1729695830777,3.05,2560.6,2560.5,4.2964]
[1729695830980,3.2078,2561.0,2560.5,4.2964]
[1729695831180,3.2078,2561.0,2560.9,0.39074]
[1729695831491,3.59852,2561.0,2560.9,0.39074]
[1729695831882,3.59852,2561.0,2560.9,41.19074]
[1729695832685,3.2078,2561.0,2560.9,41.19074]
[1729695833195,3.59852,2561.0,2560.9,40.8]
[1729695833491,3.59852,2561.0,2560.9,41.19074]
[1729695834294,3.59852,2561.0,2560.9,40.8]
[1729695834492,3.2078,2561.0,2560.7,0.93426]
[1729695834690,3.44075,2560.9,2560.8,0.39074]
[1729695834887,3.44075,2560.9,2560.8,41.19074]
[1729695835088,3.05,2560.9,2560.8,41.19074]
[1729695835287,3.59853,2561.0,2560.9,0.39074]
[1729695835288,3.2078,2561.0,2560.9,0.39074]
[1729695836093,0.9564,2561.2,2561.1,0.39071]
[1729695836295,3.59848,2561.3,2561.2,0.39069]
[1729695836503,0.39069,2561.3,2561.2,0.39068]
[1729695836994,0.39065,2561.5,2561.4,0.39065]
[1729695837196,3.2078,2561.6,2561.5,0.39065]
[1729695837502,3.2078,2561.6,2561.0,1.5365]
[1729695837503,0.39066,2561.5,2561.4,0.39065]
[1729695837904,3.05,2561.5,2560.8,41.77688]
[1729695838198,3.2078,2561.6,2561.0,0.97679]
[1729695838495,0.39066,2561.5,2561.4,0.39065]
[1729695838696,3.2078,2561.6,2561.0,0.97679]
[1729695838897,3.59845,2561.6,2561.5,0.39065]
[1729695839797,0.39067,2561.4,2561.3,0.39067]
[1729695842000,0.3907,2561.3,2561.2,0.39068]
[1729695842397,0.3907,2561.3,2561.2,4.29468]
[1729695842811,0.3907,2561.3,2561.2,0.39068]
[1729695842998,0.39072,2561.1,2561.0,0.3907]
[1729695843498,0.3907,2561.2,2561.1,0.39069]
[1729695843898,0.3907,2561.2,2560.8,41.77687]
[1729695843899,3.2078,2561.3,2560.9,0.97684]
[1729695844102,3.59849,2561.3,2561.2,0.39069]
[1729695845105,3.2078,2561.3,2560.8,41.77687]
[1729695845404,2.08446,2561.7,2561.6,0.39063]
[1729695845405,3.2078,2561.7,2561.6,0.39063]
[1729695845621,3.2078,2562.3,2561.6,6.2578]
[1729695845905,3.2078,2562.3,2562.2,0.39054]
[1729695846105,0.39069,2561.3,2560.9,0.39072]
[1729695846305,0.39071,2561.1,2560.7,0.39076]
[1729695846604,0.39071,2561.1,2560.1,0.20209568]
[1729695846605,3.2078,2560.9,2560.2,3.05]
[1729695846813,3.2078,2560.9,2560.6,0.39077]
[1729695847108,3.2078,2560.9,2560.7,40.8]
[1729695847709,3.59854,2560.9,2560.7,40.8]
[1729695848103,3.59854,2560.9,2560.5,0.9389]
[1729695848304,3.2078,2560.9,2560.7,0.39075]
[1729695848607,3.4407,2561.2,2561.1,0.39071]
[1729695848608,3.2078,2561.2,2561.1,0.39071]
[1729695848813,3.2078,2561.2,2561.1,4.29551]
[1729695849004,3.2078,2561.6,2561.1,3.9048]
[1729695849204,3.2078,2561.6,2561.4,0.39065]
[1729695849508,3.2078,2561.6,2561.5,41.19065]
[1729695850109,3.2078,2561.6,2561.5,45.09465]
[1729695850312,3.2078,2561.6,2561.5,44.704]
[1729695850500,3.59843,2561.6,2561.5,40.8]
[1729695851512,3.59843,2561.6,2561.3,0.5747]
[1729695851513,0.39066,2561.4,2561.3,0.5747]
[1729695852010,0.39066,2561.4,2561.3,41.3747]
[1729695852310,0.39066,2561.4,2561.3,0.5747]
[1729695852509,0.39066,2561.4,2560.2,2.03360231]
[1729695852510,0.39078,2560.6,2560.2,2.03360231]
[1729695852704,0.39078,2560.6,2560.4,40.8]
[1729695853306,3.59858,2560.7,2560.5,5.31320115]
[1729695853506,6.9578,2560.7,2560.5,1.01680115]
[1729695853706,0.5356,2560.6,2560.4,1.52520173]
[1729695853903,0.3908,2560.5,2560.4,1.52520173]
[1729695854813,0.5356,2560.6,2560.4,1.52520173]
[1729695855010,0.3908,2560.5,2560.4,1.52520173]
[1729695855209,0.5356,2560.6,2560.4,1.52520173]
[1729695855509,0.3908,2560.5,2560.4,1.52520173]
[1729695856316,6.9578,2560.7,2560.4,5.43080173]
[1729695856317,3.2078,2560.7,2560.4,5.43080173]
[1729695856517,3.59857,2560.7,2560.5,0.39079]
[1729695856919,2.4553,2560.6,2560.5,0.3908]
[1729695858007,0.11360001,2560.6,2560.5,4.2964]
[1729695858321,0.11360001,2560.6,2560.5,7.5042]
[1729695858511,0.11360001,2560.6,2560.5,48.3042]
[1729695859512,3.2078,2561.4,2560.5,51.6634]
[1729695859717,3.2078,2561.4,2561.3,0.39066]
[1729695859920,3.2078,2561.4,2561.2,0.39068]
[1729695860117,6.9578,2561.4,2560.7,4.18471]
[1729695860312,3.2078,2561.4,2560.7,4.18471]
[1729695860512,3.2078,2561.4,2561.3,0.39068]
[1729695861712,0.564,2561.7,2561.0,4.18458]
[1729695861905,0.95462,2561.7,2561.6,0.39063]
[1729695862112,0.564,2561.7,2561.6,0.39063]
[1729695862409,3.7562,2561.8,2561.2,0.97672]
[1729695862614,3.7562,2561.8,2561.6,0.39062]
[1729695862814,3.7562,2561.8,2561.7,0.39061]
[1729695862815,3.2078,2561.8,2561.7,0.39061]
[1729695863114,3.2078,2562.1,2562.0,0.39057]
[1729695863319,0.5363,2562.2,2561.6,0.5336]
[1729695863520,0.5363,2562.2,2562.1,0.39055]
[1729695863521,5.29348963,2562.2,2562.1,0.39055]
[1729695863721,0.5363,2562.2,2561.8,40.8]
[1729695864015,3.2078,2562.1,2562.0,0.39057]
[1729695864210,3.2078,2562.1,2561.8,41.19059]
[1729695864211,0.39057,2562.0,2561.8,41.19059]
[1729695864407,3.2078,2562.1,2561.8,41.19059]
[1729695864615,0.39058,2561.9,2561.8,40.8]
[1729695864816,0.20324685,2562.9,2561.9,3.9032]
[1729695865014,3.2078,2563.1,2563.0,0.39042]
[1729695865217,0.5629,2563.9,2562.8,3.75]
[1729695865218,3.2078,2563.5,2562.8,3.75]
[1729695865522,0.39036,2563.4,2562.9,0.564]
[1729695865711,0.39036,2563.4,2563.2,0.39039]
[1729695865914,0.3904,2563.1,2563.0,40.8]
[1729695866113,3.2078,2563.2,2563.0,40.8]
[1729695866415,3.2078,2563.2,2562.9,3.75]
[1729695866619,0.39042,2563.0,2562.8,0.39045]
[1729695867120,0.39042,2563.0,2562.7,0.39045]
[1729695867325,4.06973582,2563.1,2562.7,0.39046]
[1729695867326,0.39044,2562.9,2562.7,0.39046]
[1729695867620,0.39042,2563.0,2562.8,0.39045]
[1729695868013,0.39043,2562.9,2562.7,0.39046]
[1729695868222,4.4847863,2562.9,2562.7,0.39046]
[1729695868416,4.0943563,2562.9,2562.6,4.14047]
[1729695868622,7.3021563,2562.9,2562.8,0.39045]
[1729695869115,11.2037563,2562.9,2562.6,3.75]
[1729695869319,7.6925863,2562.9,2562.7,0.39045]
[1729695869526,7.3021563,2562.9,2562.8,4.14045]
[1729695869719,3.2078,2562.9,2562.8,4.14045]
[1729695870416,3.2078,2562.9,2562.8,0.39045]
[1729695871309,0.39045,2562.8,2562.7,0.39045]
[1729695871608,3.2078,2562.9,2562.8,0.39045]
[1729695871609,3.59824,2562.9,2562.8,0.39045]
[1729695871810,3.2078,2562.9,2562.5,3.2078]
[1729695872013,0.3905,2562.5,2562.4,0.3905]
[1729695872211,0.39052,2562.4,2562.2,4.14053]
[1729695872417,3.2078,2562.3,2561.9,4.3409]
[1729695872620,7.29341162,2562.3,2561.9,4.3409]
[1729695872821,3.59833,2562.3,2562.2,0.39054]
[1729695873117,3.59833,2562.3,2562.0,0.39055]
[1729695873118,0.39055,2562.2,2562.0,0.39055]
[1729695873518,0.39055,2562.2,2561.9,4.3409]
[1729695873724,0.39055,2562.2,2562.1,0.39055]
[1729695873926,3.59833,2562.3,2562.2,0.39054]
[1729695874126,3.2078,2562.3,2561.9,4.14057]
[1729695874336,0.39057,2562.0,2561.9,4.14057]
[1729695874620,4.14100514,2562.2,2561.9,3.75]
[1729695874830,0.39056,2562.1,2562.0,0.39056]
[1729695875025,4.14100514,2562.2,2561.9,3.75]
[1729695875221,4.71370514,2562.2,2561.9,3.75]
[1729695875423,7.92150514,2562.2,2561.9,3.75]
[1729695875627,0.39055,2562.1,2561.9,4.14057]
[1729695875828,7.92150514,2562.2,2561.9,3.75]
[1729695876015,7.92150514,2562.2,2561.7,3.75]
[1729695876016,0.3906,2561.8,2561.7,3.75]
[1729695876323,0.3906,2561.8,2561.7,4.14061]
[1729695876716,0.3906,2561.8,2561.7,3.75]
[1729695876914,0.39065,2561.5,2561.4,3.75]
[1729695877126,0.39065,2561.5,2561.4,4.14066]
[1729695877329,3.59844,2561.6,2561.5,0.39065]
[1729695877515,0.39065,2561.5,2561.4,4.14065]
[1729695877920,0.8971,2561.5,2561.4,4.14065]
[1729695879018,0.8971,2561.5,2561.4,11.25245]
[1729695879219,0.8971,2561.5,2561.4,8.04465]
[1729695881321,0.8971,2561.5,2561.4,0.39065]
[1729695881523,0.8971,2561.5,2561.2,0.39069]
[1729695881524,0.39069,2561.3,2561.2,0.39069]
[1729695881934,8.63790014,2561.3,2561.2,0.39069]
[1729695882118,9.19540014,2561.3,2561.2,0.39069]
[1729695882429,0.39072,2561.0,2560.9,41.19073]
[1729695882627,0.39072,2561.0,2560.9,41.19074]
[1729695882924,0.39071,2561.1,2561.0,0.39071]
[1729695883329,4.80199755,2561.1,2561.0,0.39071]
[1729695883530,0.39073,2561.0,2560.9,0.39072]
[1729695883922,4.80199755,2561.1,2561.0,0.39072]
[1729695884323,0.39073,2561.0,2560.9,0.39072]
[1729695884621,4.41128755,2561.1,2560.8,40.8]
[1729695884817,4.80200755,2561.1,2561.0,0.39072]
[1729695885325,4.41128755,2561.1,2561.0,0.39072]
[1729695885528,4.80199755,2561.1,2561.0,0.39072]
[1729695885823,4.41128755,2561.1,2561.0,0.39072]
[1729695886127,3.2078,2561.2,2561.1,0.39071]
[1729695886632,3.2078,2561.2,2561.1,41.19071]
[1729695887226,1.28775,2561.5,2561.4,0.39066]
[1729695887925,0.8971,2561.5,2561.4,0.39066]
[1729695889326,0.8971,2561.5,2561.4,4.29466]
[1729695889521,0.8971,2561.5,2561.4,0.39066]
[1729695891332,0.8971,2561.5,2561.4,4.29466]
[1729695891836,0.8971,2561.5,2561.4,7.50246]
[1729695894130,0.8971,2561.5,2561.4,3.59846]
[1729695894432,0.8971,2561.5,2561.4,7.50246]
[1729695897235,1.49403,2562.3,2562.2,0.39054]
[1729695897236,1.49404,2562.3,2562.2,0.39054]
[1729695897536,3.2078,2562.7,2562.4,0.39051]
[1729695897832,0.39042,2563.0,2562.9,0.39043]
[1729695898226,7.66056607,2563.0,2562.9,0.39043]
[1729695898423,3.59822,2563.0,2562.9,0.39043]
[1729695898625,0.39044,2562.9,2562.8,0.39043]
[1729695899436,0.39044,2562.9,2562.6,40.8]
[1729695899437,3.9016,2562.9,2562.6,40.8]
[1729695899636,4.41936258,2562.9,2562.6,40.8]
[1729695899934,3.2078,2563.0,2562.9,0.39043]
[1729695901236,5.31179,2563.3,2563.2,0.39039]
[1729695901733,0.3904,2563.2,2563.1,0.39039]
[1729695902035,4.51172168,2563.2,2563.1,0.39039]
[1729695902232,4.51172168,2563.2,2563.1,4.14039]
[1729695902425,3.2078,2563.6,2563.5,0.39034]
[1729695902825,0.39035,2563.5,2563.4,0.39035]
[1729695903047,3.2078,2563.6,2563.0,3.2078]
[1729695903337,0.5884,2563.5,2563.0,3.2078]
[1729695903739,0.39036,2563.4,2563.3,0.39036]
[1729695903937,0.5884,2563.5,2563.0,3.2078]
[1729695904141,0.39038,2563.3,2563.2,0.39038]
[1729695904337,0.5884,2563.5,2563.0,3.2078]
[1729695904541,0.39038,2563.3,2563.2,0.39038]
[1729695904941,3.9016,2563.3,2562.8,0.5761]
[1729695905133,0.39042,2563.0,2562.9,0.39042]
[1729695905332,8.02492676,2563.3,2562.7,0.95385]
[1729695905333,0.39045,2562.8,2562.7,0.95385]
[1729695905539,0.39045,2562.8,2562.7,0.39046]
[1729695905739,0.39046,2562.8,2562.7,0.39046]
[1729695906235,0.5737,2562.9,2562.6,0.39047]
[1729695906236,0.39047,2562.7,2562.6,0.39047]
[1729695907428,0.39046,2562.8,2562.7,0.39045]
[1729695908434,0.39048,2562.7,2562.6,0.39047]
[1729695908637,0.5737,2562.9,2562.3,41.3959]
[1729695908839,0.3905,2562.5,2562.4,0.3905]
[1729695909341,0.39052,2562.4,2562.3,0.39051]
[1729695909646,4.40531687,2562.5,2562.0,1.1039]
[1729695909842,4.40531687,2562.5,2562.0,41.3457]
[1729695909843,0.5385,2562.4,2562.0,41.3457]
[1729695910032,0.39056,2562.1,2562.0,0.39055]
[1729695910236,3.7463,2562.4,2562.2,0.39052]
[1729695910237,4.82841198,2562.3,2562.2,0.39052]
[1729695910538,4.82841198,2562.3,2562.1,0.39054]
[1729695910539,0.39055,2562.2,2562.1,0.39054]
[1729695910842,0.39058,2562.0,2561.9,0.39057]
[1729695911142,0.39059,2561.9,2561.8,0.39059]
[1729695911444,3.2078,2562.1,2561.6,0.5738]
[1729695911445,3.2078,2562.1,2561.7,40.8]
[1729695911744,4.24423791,2562.0,2561.7,40.8]
[1729695912044,4.24423791,2562.0,2561.7,41.1906]
[1729695912045,0.3906,2561.8,2561.7,41.1906]
[1729695912244,0.39059,2561.9,2561.8,0.39058]
[1729695912939,4.24423791,2562.0,2561.7,40.8]
[1729695913147,4.63480791,2562.0,2561.9,0.39058]
[1729695913337,4.24423791,2562.0,2561.7,40.8]
[1729695913536,4.24423791,2562.0,2561.8,0.39059]
[1729695913840,4.24423791,2562.0,2561.9,0.39058]
[1729695914140,4.24423791,2562.0,2561.7,40.8]
[1729695914141,4.24423791,2562.0,2561.7,41.19061]
[1729695914343,0.3906,2561.8,2561.7,41.19061]
[1729695914638,0.39061,2561.8,2561.7,0.39061]
[1729695915137,1.1465,2561.9,2561.5,0.5582]
[1729695915342,0.3906,2561.8,2561.7,0.39061]
[1729695916447,0.39062,2561.7,2561.6,0.39062]
[1729695916641,1.1465,2561.9,2561.5,40.8]
[1729695916844,0.39063,2561.6,2561.5,41.19064]
[1729695917040,0.39063,2561.6,2561.5,0.39065]
[1729695917235,0.39063,2561.6,2561.4,0.39066]
[1729695917236,0.39065,2561.5,2561.4,0.39066]
[1729695917435,0.39071,2561.1,2561.0,0.39071]
[1729695917645,3.2078,2561.2,2560.6,4.18475]
[1729695917943,4.84606322,2561.1,2561.0,0.39071]
[1729695918439,0.39073,2561.0,2560.9,0.39073]
[1729695918639,4.84606322,2561.1,2561.0,0.39072]
[1729695918833,4.45535322,2561.1,2560.6,3.2078]
[1729695919039,0.39073,2561.0,2560.9,0.39072]
[1729695919245,0.39074,2560.9,2560.8,0.39074]
[1729695920143,0.39077,2560.8,2560.4,1.1652]
[1729695920440,0.95047,2560.8,2560.7,0.39077]
[1729695920937,0.39077,2560.7,2560.6,0.39077]
[1729695922043,0.5597,2560.8,2560.5,40.8]
[1729695922248,0.39078,2560.7,2560.6,0.39078]
[1729695922949,0.95047,2560.8,2560.7,0.39077]
[1729695923443,4.85527,2560.8,2560.7,0.39077]
[1729695923850,8.60833306,2560.8,2560.7,0.39077]
[1729695924051,3.24736306,2560.8,2560.7,4.29557]
[1729695924348,0.39065,2561.6,2561.5,0.39063]
[1729695924649,0.39066,2561.5,2561.4,0.39065]
[1729695924847,4.29466,2561.5,2561.4,0.39065]
[1729695925045,0.39067,2561.4,2561.3,0.39066]
[1729695925351,4.81057149,2561.5,2561.4,0.39066]
[1729695925542,4.41992149,2561.5,2561.4,0.39066]
[1729695926043,4.0788886,2561.6,2561.5,0.39065]
[1729695926343,3.59843,2561.7,2561.6,0.39063]
[1729695927950,3.59843,2561.7,2561.1,0.5865]
[1729695927951,15.32252724,2561.7,2561.1,0.5865]
[1729695928155,0.39066,2561.5,2561.4,0.39065]
[1729695928442,4.7824781,2561.5,2561.4,0.39065]
[1729695928644,0.39068,2561.3,2561.2,0.39068]
[1729695929147,3.2078,2561.4,2561.1,0.5865]
[1729695929338,3.59846,2561.4,2561.3,0.39068]
[1729695930145,3.2078,2561.4,2561.3,0.39068]
[1729695930654,3.59846,2561.4,2561.3,0.39068]
[1729695930948,0.39069,2561.3,2561.2,0.39068]
[1729695931265,3.2078,2561.4,2561.1,0.5865]
[1729695931551,3.59847,2561.4,2561.3,0.39068]
[1729695931944,3.2078,2561.7,2561.3,0.39068]
[1729695932151,0.39064,2561.6,2561.5,0.39063]
[1729695932348,0.39066,2561.5,2561.4,0.39065]
[1729695932543,0.39069,2561.2,2561.1,0.9772]
[1729695932944,3.9048,2561.2,2561.0,0.5652]
[1729695933156,0.39071,2561.1,2561.0,0.95591]
[1729695933362,4.14870123,2561.2,2560.7,0.5756]
[1729695933546,4.75888,2561.4,2560.9,0.39072]
[1729695933547,0.39073,2561.0,2560.9,0.39072]
[1729695933743,4.29553,2561.0,2560.9,0.39072]
[1729695933946,8.4282934,2561.0,2560.9,0.39072]
[1729695934154,0.39075,2560.9,2560.8,0.39075]
[1729695934353,8.0375634,2561.0,2560.7,41.3756]
[1729695934354,4.1327634,2561.0,2560.7,41.3756]
[1729695934650,0.39075,2560.9,2560.8,0.39074]
[1729695935054,4.65150943,2560.9,2560.8,0.39074]
[1729695935254,8.55630943,2560.9,2560.8,0.39074]
[1729695935760,0.39075,2560.8,2560.7,41.19075]
[1729695936154,4.88672142,2560.8,2560.7,41.19075]
[1729695936353,4.49597142,2560.8,2560.7,0.39075]
[1729695936851,4.5618,2561.1,2560.8,0.39075]
[1729695936852,0.39074,2560.9,2560.8,0.39075]
[1729695937255,8.36006716,2560.9,2560.8,0.39075]
[1729695937447,4.06452716,2560.9,2560.8,0.39075]
[1729695937754,4.45525716,2561.0,2560.9,0.39074]
[1729695938148,0.39073,2561.0,2560.9,0.39074]
[1729695938347,3.59851,2561.1,2561.0,0.39072]
[1729695938655,4.62364414,2561.0,2560.9,0.39072]
[1729695938953,0.39073,2561.0,2560.9,0.39072]
[1729695939155,3.59852,2561.1,2561.0,0.39072]
[1729695939449,3.59852,2561.1,2560.5,40.8]
[1729695939450,4.46010216,2561.0,2560.5,40.8]
[1729695939656,4.46010216,2561.0,2560.6,0.97696]
[1729695939850,3.2078,2561.1,2560.6,0.97696]
[1729695940052,3.2078,2561.5,2560.9,3.75]
[1729695940358,3.2078,2561.8,2561.7,0.39061]
[1729695940751,7.73680236,2561.8,2561.7,0.39061]
[1729695941250,7.34620236,2561.8,2561.7,0.39061]
[1729695941744,3.59835,2562.2,2562.1,0.39054]
[1729695942052,3.2078,2562.2,2562.1,0.39054]
[1729695942956,3.59834,2562.2,2562.1,0.39054]
[1729695943262,0.39057,2562.1,2562.0,0.39056]
[1729695943448,3.59834,2562.2,2562.1,0.39055]
[1729695944057,3.2078,2562.2,2561.9,40.8]
[1729695946552,3.75,2562.0,2561.0,3.2078]
[1729695946749,3.2078,2561.7,2561.4,0.5472]
[1729695947849,4.346,2562.1,2561.4,8.2012]
[1729695948050,4.346,2562.1,2561.4,4.2972]
[1729695948252,3.2078,2562.1,2561.4,4.2972]
[1729695949447,3.2078,2562.1,2561.4,4.8427]
[1729695952557,3.2078,2562.1,2561.5,40.8]
[1729695953061,3.2078,2562.1,2561.6,0.5914]
[1729695953353,1.354,2562.4,2561.6,0.5914]
[1729695953354,3.2078,2561.8,2561.6,0.5914]
[1729695953658,4.52286123,2561.7,2561.6,0.5914]
[1729695954354,4.52286123,2561.7,2561.4,0.5472]
[1729695956459,4.52286123,2561.7,2561.3,3.2078]
[1729695956652,3.75,2561.5,2561.3,3.2078]
[1729695956853,3.2078,2561.4,2560.6,1.1545]
[1729695957053,3.2078,2561.1,2560.7,40.8]
[1729695959455,5.00185938,2561.0,2560.7,40.8]
[1729695960852,0.5767,2560.9,2560.3,3.2078]
[1729695961259,0.5767,2560.9,2560.2,1.2173]
[1729695961260,7.49229893,2560.8,2560.2,1.2173]
[1729695961569,7.49229893,2560.8,2560.3,40.8]
[1729695963058,3.2078,2560.5,2560.3,40.8]
[1729695963454,0.3905,2560.4,2560.3,40.8]
[1729695965459,0.3905,2560.4,2560.3,43.85]
[1729695965658,3.2078,2560.8,2560.3,47.7556]
[1729695965960,3.2078,2560.8,2560.6,3.05]
[1729695966971,3.2078,2560.8,2560.7,40.8]
[1729695967165,3.2078,2560.8,2560.7,44.7048]
[1729695969064,3.2078,2560.8,2560.7,45.287]
[1729695969264,0.6212,2561.5,2560.7,45.287]
[1729695969469,0.6212,2561.5,2561.1,3.05]
[1729695969770,4.24487258,2561.4,2561.2,0.5822]
[1729695969968,3.5201,2561.6,2561.2,0.5822]
[1729695972376,3.5201,2561.6,2561.3,40.8]
[1729695972665,3.5201,2561.6,2561.3,43.85]
[1729695973171,3.5201,2561.6,2561.5,3.05]
[1729695973574,3.5201,2561.6,2561.3,3.05]
[1729695973766,3.5201,2561.6,2561.5,40.8]
[1729695975173,11.93278605,2561.6,2560.9,3.05]
[1729695975373,0.5967,2561.5,2560.9,3.6533]
[1729695975667,4.24676552,2561.4,2561.0,40.8]
[1729695975874,4.24676552,2561.4,2560.9,0.6033]
[1729695976071,4.24676552,2561.4,2560.9,3.6533]
[1729695976469,4.24676552,2561.4,2560.9,44.4533]
[1729695977268,4.24676552,2561.4,2560.9,40.8]
[1729695977269,3.2078,2561.3,2560.9,40.8]
[1729695977476,3.2078,2561.0,2560.5,3.05]
[1729695977864,3.2078,2561.0,2560.6,40.8]
[1729695978366,3.2078,2561.0,2560.7,3.05]
[1729695978764,3.2078,2561.0,2560.6,40.8]
[1729695979580,0.3123,2560.9,2560.6,40.8]
[1729695979970,4.34024598,2560.8,2560.6,40.8]
[1729695980175,4.34024598,2560.8,2560.3,4.281]
[1729695980176,4.34024598,2560.8,2560.5,3.05]
[1729695981179,3.2078,2560.7,2560.5,3.05]
[1729695982677,4.26418469,2560.6,2560.5,40.8]
[1729695983172,4.26418469,2560.6,2560.3,3.6777]
[1729695983379,4.26418469,2560.6,2560.3,3.05]
[1729695983771,4.26418469,2560.6,2560.4,40.8]
[1729695984886,4.86168469,2560.6,2560.4,40.8]
[1729695985379,4.86168469,2560.6,2560.3,3.05]
[1729695985574,4.26418469,2560.6,2560.3,3.05]
[1729695985776,3.2078,2560.7,2560.5,3.05]
[1729695987683,3.2078,2560.7,2560.4,40.8]
[1729695988371,3.2078,2560.7,2560.5,3.05]
[1729695988879,3.2078,2560.7,2560.4,40.8]
[1729695992187,0.3124,2560.6,2560.4,40.8]
[1729695993889,4.36272339,2560.5,2560.4,40.8]
[1729695995082,4.36272339,2560.5,2560.2,0.6307]
[1729695995484,4.36272339,2560.5,2560.3,40.8]
[1729695996900,4.97522339,2560.5,2560.3,40.8]
[1729695997195,0.39081,2560.4,2560.3,41.19081]
[1729695997793,4.97522339,2560.5,2560.3,40.8]
[1729695997990,5.36602339,2560.5,2560.4,0.39081]
[1729695998391,4.75352339,2560.5,2560.4,0.39081]
[1729695999095,4.36272339,2560.5,2560.4,0.39081]
[1729695999697,4.75352339,2560.5,2560.4,0.39081]
[1729695999887,4.36272339,2560.5,2560.4,0.39081]
[1729696000699,0.3124,2560.6,2560.5,0.3908]
[1729696002006,0.3124,2560.6,2560.3,43.85]
[1729696003205,0.3124,2560.6,2560.5,3.05]
[1729696004704,0.3124,2560.6,2560.3,43.85]
[1729696005603,0.3124,2560.6,2560.5,3.05]
[1729696005899,3.2078,2561.0,2560.5,6.2578]
[1729696006105,3.2078,2561.0,2560.6,3.05]
[1729696006506,3.2078,2561.0,2560.7,0.6123]
[1729696007105,3.2078,2561.0,2560.7,1.58921]
[1729696007406,3.2078,2561.0,2560.9,0.39074]
[1729696007604,0.39075,2560.9,2560.8,0.39074]
[1729696007805,5.50568341,2560.9,2560.8,0.39075]
[1729696007997,1.2394,2560.9,2560.8,0.39075]
[1729696008312,5.50568341,2560.9,2560.8,0.39075]
[1729696008500,5.89642341,2560.9,2560.8,0.39075]
[1729696008700,5.50568341,2560.9,2560.6,0.601]
[1729696009000,3.2078,2560.7,2560.6,0.39076]
[1729696009200,3.2078,2560.7,2560.6,3.44076]
[1729696009404,3.2078,2560.7,2560.6,0.39076]
[1729696014507,3.5202,2560.7,2560.6,0.39076]
[1729696016108,3.91097,2560.7,2560.6,0.39076]
[1729696016710,3.5202,2560.7,2560.6,0.39076]
[1729696018812,3.8326,2560.7,2560.6,0.39076]
[1729696019206,3.8928,2560.7,2560.6,0.39076]
[1729696020305,1.56459902,2560.7,2560.6,0.39076]
[1729696020612,2.05342794,2560.7,2560.6,0.39076]
[1729696020811,1.66265794,2560.7,2560.6,0.39076]
[1729696021212,2.05342794,2560.7,2560.6,0.39076]